[Event "Open NK Rapid 2025 bord 26-50"]
[Site "Helmond, Netherlands"]
[Date "2025.05.03"]
[Round "7.8"]
[White "Wilming, Auke"]
[Black "Hallibert, Emilien"]
[Result "1-0"]
[TimeControl "15 min +5 sec increment"]
[WhiteFideId "40101096"]
[BlackFideId "1092561"]
[WhiteElo "1962"]
[BlackElo "1720"]

1. e4 {[%clk 00:13:26]} {[%emt 00:01:44]} c6 {[%clk 00:15:09]} 2. Nc3 {[%clk
00:13:29]} {[%emt 00:00:02]} d5 {[%clk 00:15:13]} {[%emt 00:00:01]} 3. Nf3
{[%clk 00:13:33]} {[%emt 00:00:01]} Bg4 {[%clk 00:15:15]} 4. h3 {[%clk
00:13:37]} {[%emt 00:00:02]} Bxf3 {[%clk 00:15:19]} {[%emt 00:00:01]} 5. Qxf3
{[%clk 00:13:40]} {[%emt 00:00:02]} Nf6 {[%clk 00:15:22]} {[%emt 00:00:02]} 6.
d3 {[%clk 00:13:43]} {[%emt 00:00:03]} d4 {[%clk 00:15:22]} {[%emt 00:00:05]} 7.
Nb1 {[%clk 00:13:19]} {[%emt 00:00:29]} e5 {[%clk 00:15:26]} 8. Qg3 {[%clk
00:12:56]} {[%emt 00:00:27]} Qc7 {[%clk 00:13:27]} {[%emt 00:02:04]} 9. Be2
{[%clk 00:12:58]} {[%emt 00:00:04]} c5 {[%clk 00:13:24]} {[%emt 00:00:08]} 10.
O-O {[%clk 00:12:20]} {[%emt 00:00:42]} Nc6 {[%clk 00:13:27]} {[%emt 00:00:02]}
11. a4 {[%clk 00:12:01]} {[%emt 00:00:25]} a6 {[%clk 00:12:56]} {[%emt
00:00:35]} 12. Na3 {[%clk 00:11:22]} {[%emt 00:00:44]} Rb8 {[%clk 00:12:55]}
{[%emt 00:00:06]} 13. f4 {[%clk 00:10:41]} {[%emt 00:00:46]} g6 {[%clk
00:10:03]} {[%emt 00:02:58]} 14. fxe5 {[%clk 00:09:54]} {[%emt 00:00:52]} Nd7
{[%clk 00:09:57]} {[%emt 00:00:11]} 15. Rxf7 {[%clk 00:09:41]} {[%emt
00:00:18]} Ncxe5 {[%clk 00:09:18]} {[%emt 00:00:44]} 16. Rf1 {[%clk 00:07:19]}
{[%emt 00:02:26]} Bd6 {[%clk 00:09:04]} {[%emt 00:00:18]} 17. Qh4 {[%clk
00:06:53]} {[%emt 00:00:32]} Nf7 {[%clk 00:06:49]} {[%emt 00:02:22]} 18. Bg4
{[%clk 00:06:13]} {[%emt 00:00:43]} Nde5 {[%clk 00:06:15]} {[%emt 00:00:40]} 19.
Be6 {[%clk 00:06:07]} {[%emt 00:00:10]} O-O {[%clk 00:06:15]} {[%emt 00:00:05]}
20. Nc4 {[%clk 00:05:27]} {[%emt 00:00:45]} Nxc4 {[%clk 00:05:40]} {[%emt
00:00:40]} 21. Bxc4 {[%clk 00:05:30]} {[%emt 00:00:02]} b5 {[%clk 00:05:43]}
{[%emt 00:00:03]} 22. axb5 {[%clk 00:05:33]} {[%emt 00:00:02]} axb5 {[%clk
00:05:46]} 23. Bd5 {[%clk 00:05:30]} {[%emt 00:00:08]} Be5 {[%clk 00:05:11]}
{[%emt 00:00:40]} 24. Bh6 {[%clk 00:04:25]} {[%emt 00:01:10]} Bg7 {[%clk
00:05:15]} {[%emt 00:00:01]} 25. Bxg7 {[%clk 00:04:29]} {[%emt 00:00:02]} Kxg7
{[%clk 00:05:18]} {[%emt 00:00:02]} 26. Qf6+ {[%clk 00:04:05]} {[%emt
00:00:29]} Kg8 {[%clk 00:05:21]} {[%emt 00:00:02]} 27. e5 {[%clk 00:02:20]}
{[%emt 00:01:47]} Qd7 {[%clk 00:04:31]} {[%emt 00:00:58]} 28. Ba2 {[%clk
00:01:07]} {[%emt 00:01:17]} c4 {[%clk 00:03:27]} {[%emt 00:01:09]} 29. e6
{[%clk 00:00:56]} {[%emt 00:00:16]} Qc7 {[%clk 00:03:24]} {[%emt 00:00:08]} 30.
exf7+ {[%clk 00:00:42]} {[%emt 00:00:19]} Rxf7 {[%clk 00:03:28]} {[%emt
00:00:02]} 31. Qxf7+ {[%clk 00:00:46]} {[%emt 00:00:01]} Qxf7 {[%clk 00:03:31]}
{[%emt 00:00:01]} 32. Rxf7 {[%emt 00:00:02]} Kxf7 {[%emt 00:00:02]} 33. dxc4
{[%clk 00:00:36]} {[%emt 00:00:12]} bxc4 {[%clk 00:03:34]} {[%emt 00:00:02]} 34.
Bxc4+ {[%clk 00:00:40]} {[%emt 00:00:01]} Kf6 {[%clk 00:03:38]} 35. b3 {[%clk
00:00:42]} {[%emt 00:00:03]} h5 {[%clk 00:03:38]} {[%emt 00:00:05]} 36. Kf2
{[%clk 00:00:43]} {[%emt 00:00:03]} g5 {[%clk 00:03:42]} {[%emt 00:00:02]} 37.
Ra6+ {[%clk 00:00:47]} {[%emt 00:00:01]} Kf5 {[%clk 00:03:43]} {[%emt
00:00:04]} 38. Bd3+ {[%clk 00:00:48]} {[%emt 00:00:04]} Ke5 {[%clk 00:03:44]}
{[%emt 00:00:01]} 39. Ra5+ {[%clk 00:00:46]} {[%emt 00:00:10]} Kf6 {[%clk
00:03:43]} {[%emt 00:00:06]} 40. Rf5+ {[%clk 00:00:49]} {[%emt 00:00:01]} Ke6
{[%clk 00:03:45]} {[%emt 00:00:03]} 41. Rxg5 {[%clk 00:00:50]} {[%emt
00:00:04]} Rf8+ {[%clk 00:03:45]} {[%emt 00:00:05]} 42. Kg1 {[%clk 00:00:27]}
{[%emt 00:00:28]} h4 {[%clk 00:03:46]} {[%emt 00:00:04]} 43. Rg4 {[%clk
00:00:27]} {[%emt 00:00:06]} Ke5 {[%clk 00:03:40]} {[%emt 00:00:11]} 44. Rxh4
{[%clk 00:00:30]} {[%emt 00:00:01]} Rg8 {[%clk 00:03:39]} {[%emt 00:00:05]} 45.
Rh5+ {[%clk 00:00:33]} {[%emt 00:00:03]} Kf4 {[%clk 00:03:42]} {[%emt
00:00:02]} 46. Kf2 {[%clk 00:00:33]} {[%emt 00:00:04]} Rf8 {[%clk 00:03:13]}
{[%emt 00:00:36]} 47. g3# {[%clk 00:00:30]} 1-0

[Event "Open NK Rapid 2025 bord 26-50"]
[Site "Helmond, Netherlands"]
[Date "2025.05.03"]
[Round "7.9"]
[White "Van Wamel, Gijs"]
[Black "Darie, Aden"]
[Result "1-0"]
[TimeControl "15 min +5 sec increment"]
[WhiteFideId "40102165"]
[BlackFideId "1094831"]
[WhiteElo "1713"]
[BlackElo "1941"]

1. c4 {[%clk 00:15:08]} {[%emt 00:00:02]} e5 {[%clk 00:14:41]} {[%emt
00:00:30]} 2. g3 {[%clk 00:15:10]} {[%emt 00:00:02]} Nf6 {[%clk 00:14:43]}
{[%emt 00:00:03]} 3. Bg2 {[%clk 00:15:12]} {[%emt 00:00:03]} c6 {[%clk
00:14:41]} {[%emt 00:00:07]} 4. d4 {[%clk 00:14:43]} {[%emt 00:00:34]} e4
{[%clk 00:14:28]} {[%emt 00:00:18]} 5. Nc3 {[%clk 00:14:11]} {[%emt 00:00:37]}
d5 {[%clk 00:14:29]} {[%emt 00:00:04]} 6. cxd5 {[%clk 00:14:10]} {[%emt
00:00:07]} cxd5 {[%clk 00:14:31]} {[%emt 00:00:02]} 7. Bg5 {[%clk 00:13:57]}
{[%emt 00:00:18]} Be7 {[%clk 00:14:27]} {[%emt 00:00:07]} 8. Nh3 {[%clk
00:13:32]} {[%emt 00:00:32]} Nbd7 {[%clk 00:13:35]} {[%emt 00:00:57]} 9. O-O
{[%clk 00:13:17]} {[%emt 00:00:20]} h6 {[%clk 00:13:36]} {[%emt 00:00:03]} 10.
Bxf6 {[%clk 00:13:17]} {[%emt 00:00:06]} Nxf6 {[%clk 00:13:37]} {[%emt
00:00:03]} 11. Qb3 {[%clk 00:13:04]} {[%emt 00:00:20]} b6 {[%clk 00:13:02]}
{[%emt 00:00:39]} 12. Nf4 {[%clk 00:12:28]} {[%emt 00:00:40]} Bb7 {[%clk
00:12:38]} {[%emt 00:00:29]} 13. e3 {[%clk 00:11:13]} {[%emt 00:01:21]} O-O
{[%clk 00:12:37]} {[%emt 00:00:06]} 14. f3 {[%clk 00:11:13]} {[%emt 00:00:05]}
Rc8 {[%clk 00:12:20]} {[%emt 00:00:21]} 15. fxe4 {[%clk 00:11:02]} {[%emt
00:00:17]} dxe4 {[%clk 00:12:22]} {[%emt 00:00:03]} 16. Rad1 {[%clk 00:10:08]}
{[%emt 00:00:59]} Qd7 {[%clk 00:12:02]} {[%emt 00:00:24]} 17. h3 {[%clk
00:09:12]} {[%emt 00:01:01]} Bd6 {[%clk 00:11:45]} {[%emt 00:00:23]} 18. Kh2
{[%clk 00:08:32]} {[%emt 00:00:46]} Rfe8 {[%clk 00:11:20]} {[%emt 00:00:28]} 19.
Rf2 {[%clk 00:08:14]} {[%emt 00:00:24]} Bxf4 {[%clk 00:10:22]} {[%emt
00:01:03]} 20. gxf4 {[%clk 00:06:42]} {[%emt 00:01:37]} Qf5 {[%clk 00:09:24]}
{[%emt 00:01:02]} 21. Rg1 {[%clk 00:06:26]} {[%emt 00:00:22]} Bc6 {[%clk
00:08:12]} {[%emt 00:01:18]} 22. Bf1 {[%clk 00:06:19]} {[%emt 00:00:12]} Bd7
{[%clk 00:08:09]} {[%emt 00:00:07]} 23. a3 {[%clk 00:05:31]} {[%emt 00:00:53]}
Qh5 {[%clk 00:08:01]} {[%emt 00:00:12]} 24. Qd1 {[%clk 00:05:09]} {[%emt
00:00:27]} Qh4 {[%clk 00:07:39]} {[%emt 00:00:27]} 25. Rd2 {[%clk 00:04:19]}
{[%emt 00:00:56]} Rxc3 {[%clk 00:06:30]} {[%emt 00:01:14]} 26. bxc3 {[%clk
00:04:19]} {[%emt 00:00:06]} Nd5 {[%clk 00:06:32]} {[%emt 00:00:02]} 27. Qe2
{[%clk 00:04:11]} {[%emt 00:00:13]} Nxc3 {[%clk 00:06:04]} {[%emt 00:00:34]} 28.
Qg2 {[%clk 00:04:13]} {[%emt 00:00:02]} g6 {[%clk 00:05:55]} {[%emt 00:00:13]}
29. Bc4 {[%clk 00:04:13]} {[%emt 00:00:05]} Be6 {[%clk 00:05:45]} {[%emt
00:00:15]} 30. d5 {[%clk 00:04:14]} {[%emt 00:00:05]} Bd7 {[%clk 00:05:48]}
{[%emt 00:00:02]} 31. d6 {[%clk 00:04:11]} {[%emt 00:00:08]} Qf6 {[%clk
00:05:30]} {[%emt 00:00:22]} 32. Qxg6+ {[%clk 00:03:50]} {[%emt 00:00:26]} Qxg6
{[%clk 00:05:31]} {[%emt 00:00:04]} 33. Rxg6+ {[%clk 00:03:53]} {[%emt
00:00:02]} Kh7 {[%clk 00:05:12]} {[%emt 00:00:25]} 34. Rg1 {[%clk 00:03:56]}
{[%emt 00:00:02]} f6 {[%clk 00:04:52]} {[%emt 00:00:25]} 35. Rdg2 {[%clk
00:03:49]} {[%emt 00:00:12]} b5 {[%clk 00:04:26]} {[%emt 00:00:32]} 36. Rg7+
{[%clk 00:03:44]} {[%emt 00:00:10]} Kh8 {[%clk 00:04:30]} 37. Rg8+ {[%clk
00:03:35]} {[%emt 00:00:13]} Rxg8 {[%clk 00:04:31]} {[%emt 00:00:04]} 38. Rxg8+
{[%clk 00:03:18]} {[%emt 00:00:22]} Kh7 {[%clk 00:04:35]} 39. Bb3 {[%clk
00:03:08]} {[%emt 00:00:15]} a5 {[%clk 00:04:32]} {[%emt 00:00:08]} 40. Rd8
{[%clk 00:03:06]} {[%emt 00:00:06]} Bc6 {[%clk 00:04:36]} {[%emt 00:00:02]} 41.
d7 {[%clk 00:03:07]} {[%emt 00:00:04]} a4 {[%clk 00:04:17]} {[%emt 00:00:25]}
42. Bf7 {[%clk 00:03:01]} {[%emt 00:00:11]} Bxd7 {[%clk 00:04:16]} {[%emt
00:00:05]} 43. Rxd7 {[%clk 00:03:04]} {[%emt 00:00:02]} Nb1 {[%clk 00:04:14]}
{[%emt 00:00:08]} 44. Ba2+ {[%clk 00:02:55]} {[%emt 00:00:06]} 1-0

[Event "Open NK Rapid 2025 bord 26-50"]
[Site "Helmond, Netherlands"]
[Date "2025.05.03"]
[Round "7.11"]
[White "Kools, Thomas"]
[Black "Lenting, Roan"]
[Result "1-0"]
[TimeControl "15 min +5 sec increment"]
[WhiteFideId "1054759"]
[BlackFideId "1085905"]
[WhiteElo "2094"]
[BlackElo "1621"]

1. e4 {[%clk 00:15:07]} {[%emt 00:00:02]} c5 {[%clk 00:15:09]} 2. Nc3 {[%clk
00:15:11]} {[%emt 00:00:02]} Nc6 {[%clk 00:15:14]} 3. g3 {[%clk 00:15:15]}
{[%emt 00:00:02]} g6 {[%clk 00:15:18]} 4. Bg2 {[%clk 00:15:19]} {[%emt
00:00:01]} Bg7 {[%clk 00:15:22]} 5. d3 {[%clk 00:15:23]} {[%emt 00:00:01]} e6
{[%clk 00:15:25]} {[%emt 00:00:02]} 6. Be3 {[%clk 00:15:20]} {[%emt 00:00:08]}
d6 {[%clk 00:15:25]} {[%emt 00:00:04]} 7. f4 {[%clk 00:15:20]} {[%emt
00:00:05]} Nge7 {[%clk 00:15:28]} {[%emt 00:00:02]} 8. Nf3 {[%clk 00:15:20]}
{[%emt 00:00:05]} Nd4 {[%clk 00:15:25]} {[%emt 00:00:09]} 9. O-O {[%clk
00:15:21]} {[%emt 00:00:03]} a6 {[%clk 00:15:07]} {[%emt 00:00:23]} 10. e5
{[%emt 00:02:03]} Nec6 {[%clk 00:13:52]} 11. exd6 {[%clk 00:13:32]} {[%emt
00:01:16]} Qxd6 {[%clk 00:13:55]} {[%emt 00:00:02]} 12. Ne4 {[%clk 00:13:35]}
{[%emt 00:00:02]} Qe7 {[%clk 00:13:51]} {[%emt 00:00:09]} 13. c3 {[%clk
00:13:35]} {[%emt 00:00:05]} Nxf3+ {[%clk 00:13:44]} {[%emt 00:00:12]} 14. Qxf3
{[%clk 00:13:31]} {[%emt 00:00:09]} c4 {[%clk 00:11:50]} {[%emt 00:01:59]} 15.
dxc4 {[%clk 00:13:04]} {[%emt 00:00:33]} e5 {[%clk 00:10:23]} {[%emt 00:01:32]}
16. Bc5 {[%clk 00:12:54]} {[%emt 00:00:14]} Qe6 {[%clk 00:10:27]} {[%emt
00:00:01]} 17. Rad1 {[%clk 00:10:28]} {[%emt 00:02:31]} Bf8 {[%clk 00:09:59]}
{[%emt 00:00:32]} 18. fxe5 {[%clk 00:09:41]} {[%emt 00:00:53]} Bxc5+ {[%clk
00:09:04]} {[%emt 00:01:00]} 19. Nxc5 {[%clk 00:09:45]} {[%emt 00:00:01]} Qe7
{[%clk 00:08:32]} {[%emt 00:00:38]} 20. b4 {[%clk 00:08:22]} {[%emt 00:01:28]}
O-O {[%clk 00:07:59]} {[%emt 00:00:37]} 21. Rde1 {[%clk 00:07:56]} {[%emt
00:00:31]} Bf5 {[%clk 00:06:49]} {[%emt 00:01:16]} 22. Qf4 {[%clk 00:07:27]}
{[%emt 00:00:33]} a5 {[%clk 00:06:10]} {[%emt 00:00:44]} 23. a3 {[%clk
00:06:23]} {[%emt 00:01:09]} axb4 {[%clk 00:06:10]} {[%emt 00:00:05]} 24. axb4
{[%clk 00:06:28]} {[%emt 00:00:01]} Ra3 {[%clk 00:05:37]} {[%emt 00:00:38]} 25.
g4 {[%clk 00:06:29]} {[%emt 00:00:02]} Be6 {[%clk 00:05:39]} {[%emt 00:00:04]}
26. Ne4 {[%clk 00:06:30]} {[%emt 00:00:04]} Kg7 {[%clk 00:04:29]} {[%emt
00:01:15]} 27. Rf3 {[%clk 00:05:46]} {[%emt 00:00:49]} Bxc4 {[%clk 00:04:18]}
{[%emt 00:00:16]} 28. Rh3 {[%clk 00:05:49]} {[%emt 00:00:02]} g5 {[%clk
00:03:26]} {[%emt 00:00:57]} 29. Nxg5 {[%clk 00:05:40]} {[%emt 00:00:14]} h6
{[%clk 00:03:28]} {[%emt 00:00:03]} 30. Nxf7 {[%clk 00:05:12]} {[%emt
00:00:33]} Qg5 {[%clk 00:03:01]} {[%emt 00:00:32]} 31. Qxg5+ {[%clk 00:04:49]}
{[%emt 00:00:28]} hxg5 {[%clk 00:03:05]} {[%emt 00:00:01]} 32. Nxg5 {[%clk
00:04:51]} {[%emt 00:00:03]} Rf4 {[%clk 00:02:45]} {[%emt 00:00:25]} 33. Rg3
{[%clk 00:04:25]} {[%emt 00:00:31]} Nxe5 {[%clk 00:02:28]} {[%emt 00:00:21]} 34.
h3 {[%clk 00:03:56]} {[%emt 00:00:35]} Nd3 {[%clk 00:02:26]} {[%emt 00:00:08]}
35. Rxd3 {[%clk 00:03:54]} Kf6 {[%clk 00:01:55]} {[%emt 00:00:43]} 36. Rd6+
{[%clk 00:03:18]} {[%emt 00:00:40]} Kxg5 {[%clk 00:01:56]} {[%emt 00:00:04]} 37.
Re5+ {[%clk 00:03:22]} {[%emt 00:00:02]} Kh4 {[%clk 00:01:52]} {[%emt
00:00:08]} 38. Rh6+ {[%clk 00:03:26]} {[%emt 00:00:02]} Kg3 {[%clk 00:01:45]}
{[%emt 00:00:11]} 39. Re3+ {[%clk 00:03:29]} {[%emt 00:00:02]} 1-0

[Event "Open NK Rapid 2025 bord 26-50"]
[Site "Helmond, Netherlands"]
[Date "2025.05.03"]
[Round "7.12"]
[White "Bach Pareja, Raimon"]
[Black "Teianu, Sabin"]
[Result "1/2-1/2"]
[TimeControl "15 min +5 sec increment"]
[WhiteFideId "54728380"]
[BlackFideId "1095846"]
[WhiteElo "1868"]
[BlackElo "2089"]

1. e4 {[%clk 00:15:08]} e6 {[%clk 00:15:10]} {[%emt 00:00:01]} 2. Nf3 {[%clk
00:15:10]} {[%emt 00:00:04]} d5 {[%clk 00:15:13]} {[%emt 00:00:02]} 3. Nc3
{[%clk 00:15:13]} {[%emt 00:00:02]} d4 {[%clk 00:15:16]} {[%emt 00:00:01]} 4.
Ne2 {[%clk 00:15:17]} c5 {[%clk 00:15:20]} {[%emt 00:00:01]} 5. c3 {[%clk
00:15:16]} {[%emt 00:00:06]} Nc6 {[%clk 00:15:24]} {[%emt 00:00:02]} 6. cxd4
{[%clk 00:15:01]} {[%emt 00:00:19]} Nf6 {[%clk 00:15:27]} {[%emt 00:00:02]} 7.
Ng3 {[%clk 00:13:26]} {[%emt 00:01:39]} cxd4 {[%clk 00:14:53]} {[%emt
00:00:40]} 8. Bc4 {[%clk 00:11:42]} {[%emt 00:01:49]} Bc5 {[%clk 00:14:31]}
{[%emt 00:00:27]} 9. O-O {[%clk 00:11:41]} {[%emt 00:00:06]} O-O {[%clk
00:14:30]} {[%emt 00:00:07]} 10. d3 {[%clk 00:11:43]} {[%emt 00:00:02]} Na5
{[%clk 00:13:51]} {[%emt 00:00:45]} 11. Bb5 {[%clk 00:11:31]} {[%emt 00:00:16]}
a6 {[%clk 00:12:59]} {[%emt 00:00:58]} 12. Ba4 {[%clk 00:11:34]} {[%emt
00:00:01]} b5 {[%clk 00:13:03]} {[%emt 00:00:01]} 13. Bc2 {[%clk 00:11:39]} Nc6
{[%clk 00:13:05]} {[%emt 00:00:03]} 14. Bg5 {[%clk 00:10:33]} {[%emt 00:01:10]}
Be7 {[%clk 00:12:42]} {[%emt 00:00:28]} 15. a4 {[%clk 00:08:49]} {[%emt
00:01:49]} Rb8 {[%clk 00:12:05]} {[%emt 00:00:41]} 16. axb5 {[%clk 00:08:51]}
{[%emt 00:00:05]} axb5 {[%clk 00:12:09]} 17. Bb3 {[%clk 00:08:06]} {[%emt
00:00:50]} Nd7 {[%clk 00:11:37]} {[%emt 00:00:36]} 18. Bf4 {[%clk 00:07:53]}
{[%emt 00:00:18]} e5 {[%clk 00:11:23]} {[%emt 00:00:20]} 19. Bd2 {[%clk
00:07:53]} {[%emt 00:00:05]} Nc5 {[%clk 00:11:08]} {[%emt 00:00:20]} 20. Bd5
{[%clk 00:07:39]} {[%emt 00:00:18]} Qd6 {[%clk 00:09:32]} {[%emt 00:01:41]} 21.
Qc2 {[%clk 00:05:33]} {[%emt 00:02:11]} Rb6 {[%clk 00:06:32]} {[%emt 00:03:05]}
22. Rfc1 {[%clk 00:04:43]} {[%emt 00:00:55]} Bd7 {[%clk 00:04:56]} {[%emt
00:01:42]} 23. h3 {[%clk 00:01:52]} {[%emt 00:02:55]} Rc8 {[%clk 00:03:23]}
{[%emt 00:01:38]} 24. Ne1 {[%clk 00:00:12]} {[%emt 00:01:45]} Be6 {[%clk
00:01:56]} {[%emt 00:01:33]} 25. Bxe6 {[%clk 00:00:09]} {[%emt 00:00:08]} Qxe6
{[%clk 00:01:59]} {[%emt 00:00:01]} 26. Qd1 {[%clk 00:00:06]} {[%emt 00:00:08]}
Nb3 {[%clk 00:01:49]} {[%emt 00:00:15]} 27. Nf5 {[%clk 00:00:08]} {[%emt
00:00:03]} Nxa1 {[%clk 00:01:38]} {[%emt 00:00:17]} 28. Rxa1 {[%clk 00:00:12]}
Bf8 {[%clk 00:01:04]} {[%emt 00:00:39]} 29. Qg4 {[%clk 00:00:09]} {[%emt
00:00:08]} Kh8 {[%clk 00:00:26]} {[%emt 00:00:44]} 30. Qh4 {[%clk 00:00:09]}
{[%emt 00:00:05]} Ne7 {[%clk 00:00:14]} {[%emt 00:00:17]} 31. Ng3 {[%clk
00:00:10]} {[%emt 00:00:04]} Ng6 {[%clk 00:00:18]} {[%emt 00:00:01]} 32. Qg5
{[%clk 00:00:12]} {[%emt 00:00:03]} Be7 {[%clk 00:00:20]} {[%emt 00:00:02]} 33.
Qh5 {[%clk 00:00:15]} {[%emt 00:00:02]} Qf6 {[%clk 00:00:17]} {[%emt 00:00:09]}
34. Nf5 {[%clk 00:00:15]} {[%emt 00:00:05]} Bf8 {[%clk 00:00:13]} {[%emt
00:00:08]} 35. Nf3 {[%clk 00:00:16]} {[%emt 00:00:04]} Ne7 {[%clk 00:00:13]}
{[%emt 00:00:05]} 36. Ng3 {[%clk 00:00:09]} {[%emt 00:00:12]} Ng6 {[%clk
00:00:08]} {[%emt 00:00:11]} 37. Ra7 {[%clk 00:00:10]} {[%emt 00:00:04]} Re8
{[%clk 00:00:07]} {[%emt 00:00:05]} 38. Ng5 {[%clk 00:00:12]} {[%emt 00:00:04]}
h6 {[%clk 00:00:11]} 39. Rxf7 {[%clk 00:00:13]} {[%emt 00:00:04]} Qc6 {[%clk
00:00:10]} {[%emt 00:00:06]} 40. Nf5 {[%clk 00:00:12]} {[%emt 00:00:05]} Rb7
{[%clk 00:00:08]} {[%emt 00:00:08]} 41. Rxb7 {[%clk 00:00:06]} {[%emt
00:00:10]} Qxb7 {[%clk 00:00:12]} {[%emt 00:00:02]} 42. Qxg6 {[%clk 00:00:08]}
{[%emt 00:00:02]} hxg5 {[%clk 00:00:15]} {[%emt 00:00:02]} 43. Bxg5 {[%clk
00:00:08]} {[%emt 00:00:05]} Qd7 {[%clk 00:00:09]} {[%emt 00:00:12]} 44. h4
{[%clk 00:00:09]} {[%emt 00:00:04]} Kg8 {[%clk 00:00:08]} {[%emt 00:00:05]} 45.
Qh5 {[%clk 00:00:06]} {[%emt 00:00:08]} Qf7 {[%clk 00:00:09]} {[%emt 00:00:05]}
46. Qg4 {[%clk 00:00:09]} {[%emt 00:00:02]} b4 {[%clk 00:00:09]} {[%emt
00:00:06]} 47. Bd2 {[%clk 00:00:12]} Re6 {[%clk 00:00:07]} {[%emt 00:00:06]} 48.
Nh6+ {[%clk 00:00:11]} {[%emt 00:00:06]} Rxh6 {[%clk 00:00:09]} {[%emt
00:00:03]} 49. Bxh6 {[%clk 00:00:15]} {[%emt 00:00:02]} Qb3 {[%clk 00:00:09]}
{[%emt 00:00:04]} 50. Bg5 {[%clk 00:00:06]} {[%emt 00:00:14]} Qxb2 {[%clk
00:00:09]} {[%emt 00:00:06]} 51. Qe6+ {[%clk 00:00:11]} Kh8 {[%clk 00:00:09]}
{[%emt 00:00:05]} 52. Qf7 {[%clk 00:00:12]} {[%emt 00:00:04]} Qa1+ {[%clk
00:00:08]} {[%emt 00:00:05]} 53. Kh2 {[%clk 00:00:15]} {[%emt 00:00:02]} Qa8
{[%clk 00:00:11]} {[%emt 00:00:02]} 54. h5 {[%clk 00:00:18]} {[%emt 00:00:03]}
Qb8 {[%clk 00:00:09]} {[%emt 00:00:08]} 55. h6 {[%clk 00:00:18]} {[%emt
00:00:04]} b3 {[%clk 00:00:06]} {[%emt 00:00:08]} 56. hxg7+ {[%clk 00:00:08]}
{[%emt 00:00:14]} Bxg7 {[%clk 00:00:09]} 57. Bf6 {[%clk 00:00:11]} {[%emt
00:00:03]} Bxf6 {[%clk 00:00:08]} {[%emt 00:00:07]} 58. Qxf6+ {[%clk 00:00:15]}
Kg8 {[%clk 00:00:12]} {[%emt 00:00:01]} 1/2-1/2

[Event "Open NK Rapid 2025 bord 26-50"]
[Site "Helmond, Netherlands"]
[Date "2025.05.03"]
[Round "7.13"]
[White "Ferretti, Lorenzo"]
[Black "Taams, Lisanne"]
[Result "0-1"]
[TimeControl "15 min +5 sec increment"]
[WhiteFideId "23441330"]
[BlackFideId "1055852"]
[WhiteElo "1863"]
[BlackElo "2078"]

1. e4 {[%clk 00:15:09]} {[%emt 01:00:28]} e6 {[%clk 00:15:09]} {[%emt
00:00:02]} 2. d4 {[%clk 00:15:11]} {[%emt 00:00:02]} d5 {[%clk 00:15:12]}
{[%emt 00:00:01]} 3. Nc3 {[%clk 00:15:13]} {[%emt 00:00:03]} dxe4 {[%clk
00:15:16]} {[%emt 00:00:02]} 4. Nxe4 {[%clk 00:15:16]} {[%emt 00:00:02]} Nd7
{[%clk 00:15:20]} {[%emt 00:00:02]} 5. Nf3 {[%clk 00:15:09]} {[%emt 00:00:11]}
Ngf6 {[%clk 00:15:23]} {[%emt 00:00:02]} 6. Bd3 {[%clk 00:15:08]} {[%emt
00:00:06]} Nxe4 {[%clk 00:15:00]} {[%emt 00:00:29]} 7. Bxe4 {[%clk 00:15:10]}
{[%emt 00:00:02]} Nf6 {[%clk 00:15:02]} {[%emt 00:00:03]} 8. Bd3 {[%clk
00:15:06]} {[%emt 00:00:09]} c5 {[%clk 00:15:00]} {[%emt 00:00:08]} 9. c3
{[%clk 00:15:04]} {[%emt 00:00:07]} cxd4 {[%clk 00:14:58]} {[%emt 00:00:07]} 10.
Nxd4 {[%clk 00:15:04]} {[%emt 00:00:04]} e5 {[%clk 00:14:31]} {[%emt 00:00:33]}
11. Qe2 {[%clk 00:14:04]} {[%emt 00:01:04]} Bd6 {[%clk 00:13:40]} {[%emt
00:00:56]} 12. Nf5 {[%clk 00:13:30]} {[%emt 00:00:39]} O-O {[%clk 00:13:01]}
{[%emt 00:00:44]} 13. O-O {[%clk 00:13:03]} {[%emt 00:00:31]} Bc7 {[%clk
00:11:27]} {[%emt 00:01:41]} 14. Be3 {[%clk 00:11:58]} {[%emt 00:01:08]} e4
{[%clk 00:11:24]} {[%emt 00:00:09]} 15. Nd4 {[%clk 00:09:21]} {[%emt 00:02:41]}
exd3 {[%clk 00:11:11]} {[%emt 00:00:19]} 16. Qxd3 {[%clk 00:09:25]} Qd6 {[%clk
00:10:45]} {[%emt 00:00:31]} 17. g3 {[%clk 00:09:09]} {[%emt 00:00:21]} Bh3
{[%clk 00:10:34]} {[%emt 00:00:16]} 18. Rfe1 {[%clk 00:08:45]} {[%emt
00:00:30]} Qd5 {[%clk 00:10:16]} {[%emt 00:00:23]} 19. f3 {[%clk 00:08:37]}
{[%emt 00:00:12]} Rad8 {[%clk 00:09:36]} {[%emt 00:00:46]} 20. Qc2 {[%clk
00:08:20]} {[%emt 00:00:21]} Bb6 {[%clk 00:09:12]} {[%emt 00:00:30]} 21. Kf2
{[%clk 00:07:17]} {[%emt 00:01:06]} Ng4+ {[%clk 00:08:56]} {[%emt 00:00:22]} 22.
Kg1 {[%clk 00:06:58]} {[%emt 00:00:23]} Nxe3 {[%clk 00:08:52]} {[%emt
00:00:10]} 23. Rxe3 {[%clk 00:06:59]} {[%emt 00:00:04]} Bxd4 {[%clk 00:08:54]}
{[%emt 00:00:04]} 24. cxd4 {[%clk 00:07:00]} {[%emt 00:00:04]} Qxd4 {[%clk
00:08:57]} {[%emt 00:00:02]} 25. Rae1 {[%clk 00:06:36]} {[%emt 00:00:29]} Rfe8
{[%clk 00:08:47]} {[%emt 00:00:14]} 26. Qb3 {[%clk 00:05:31]} {[%emt 00:01:10]}
Rxe3 {[%clk 00:08:31]} {[%emt 00:00:21]} 27. Rxe3 {[%clk 00:05:15]} {[%emt
00:00:20]} Qd2 {[%clk 00:07:33]} {[%emt 00:01:03]} 0-1